bitfinex-derivatives/quotes_BNBF0:USTF0_20250309
["timestamp","ask_amount","ask_price","bid_price","bid_amount"]
[1741523044433,0.30140961,577.91,576.97,0.495]
[1741523044628,0.31828358,577.9,576.97,0.495]
[1741523047034,0.30140961,577.91,576.97,0.495]
[1741523049638,0.31825168,577.9,576.98,0.29073002]
[1741523050434,0.30139395,577.89,576.98,0.29073002]
[1741523051337,0.30139395,577.89,576.97,0.495]
[1741523051538,0.30139395,577.89,576.98,0.29072776]
[1741523052839,0.3182645,577.88,576.98,0.29072776]
[1741523053035,0.30139395,577.89,576.97,0.495]
[1741523053236,0.31826846,577.88,576.98,0.29074667]
[1741523053443,0.30139656,577.87,576.98,0.29074667]
[1741523053638,0.31826846,577.86,576.98,0.29074667]
[1741523054536,0.31826846,577.86,576.97,0.29074667]
[1741523054942,0.30139656,577.87,576.97,0.29074667]
[1741523056142,0.6960447,577.96,576.97,0.29074667]
[1741523056338,0.31825824,577.95,576.97,0.29074667]
[1741523056544,0.30138873,577.86,576.97,0.29074667]
[1741523056740,0.6960447,577.96,576.97,0.29074667]
[1741523057044,0.31825824,577.95,576.97,0.29074667]
[1741523057444,0.61964697,577.95,576.98,0.522]
[1741523057744,0.31825824,577.94,576.99,0.29074667]
[1741523057945,0.30138873,577.95,576.98,0.522]
[1741523059044,0.6960447,577.96,576.98,0.522]
[1741523059445,0.30141222,577.94,576.98,0.522]
[1741523062246,0.6960447,577.96,576.98,0.522]
[1741523062447,0.30141222,577.93,576.98,0.522]
[1741523065247,0.3460447,577.96,576.98,0.522]
[1741523065549,0.30139395,577.92,576.98,0.522]
[1741523066750,0.349,577.91,576.98,0.522]
[1741523067853,0.31825912,577.9,576.99,0.29073734]
[1741523068551,0.30139264,577.89,576.99,0.29073734]
[1741523068749,0.31825912,577.88,576.99,0.29073734]
[1741523071450,0.30139525,577.87,576.98,0.522]
[1741523071649,0.30139525,577.87,576.99,0.29073465]
[1741523071846,0.31825638,577.86,576.99,0.29073465]
[1741523073346,0.30139525,577.87,576.98,0.522]
[1741523073647,0.3182625,577.86,576.99,0.29074071]
[1741523074449,0.30139786,577.85,576.99,0.29074071]
[1741523075453,0.31826422,577.84,576.99,0.29074071]
[1741523077355,0.30140047,577.83,576.99,0.29074071]
[1741523077855,0.31826461,577.82,576.99,0.29074071]
[1741523080359,0.31826461,577.9,576.99,0.29074071]
[1741523080556,0.30141875,577.81,576.99,0.29074071]
[1741523080758,0.31826461,577.8,576.99,0.29074071]
[1741523080956,0.349,577.91,576.99,0.29074071]
[1741523080957,0.31826461,577.9,576.99,0.29074071]
[1741523081561,0.3014083,577.89,576.99,0.29074071]
[1741523081761,0.31826461,577.88,576.99,0.29074071]
[1741523082557,0.3014083,577.89,576.98,0.522]
[1741523082863,0.31828369,577.88,576.99,0.29076176]
[1741523083361,0.31828719,577.87,577.0,0.29076524]
[1741523083562,0.30141091,577.87,576.99,0.29076524]
[1741523083762,0.31828719,577.86,577.0,0.29076524]
[1741523083958,0.31828719,577.86,577.01,0.29076524]
[1741523084157,0.31828719,577.86,576.99,0.29076524]
[1741523084359,0.31828719,577.86,577.0,0.29076524]
[1741523084563,0.31828719,577.86,576.99,0.29076524]
[1741523084756,0.31828719,577.86,577.0,0.29076524]
[1741523084961,0.31828719,577.86,576.98,0.522]
[1741523084962,0.31828719,577.86,577.01,0.29076524]
[1741523085160,0.31828719,577.86,576.99,0.29076524]
[1741523085358,0.31828719,577.86,577.0,0.29076524]
[1741523085558,0.31828719,577.86,576.98,0.522]
[1741523085957,0.31828719,577.86,576.99,0.29076537]
[1741523086462,0.30141353,577.85,576.99,0.29076537]
[1741523086763,0.31828719,577.84,577.0,0.29076537]
[1741523086964,0.31828719,577.84,576.97,0.29076537]
[1741523087160,0.31828719,577.84,576.96,0.34664448]
[1741523087369,0.31828719,577.84,576.97,0.29076473]
[1741523089561,0.30141875,577.83,576.97,0.29076473]
[1741523089866,0.31828719,577.82,576.98,0.379]
[1741523090066,0.31828662,577.81,576.99,0.29076452]
[1741523090268,0.31828662,577.82,576.99,0.29076452]
[1741523090470,0.31828662,577.81,576.99,0.29076452]
[1741523090666,0.31828662,577.82,576.99,0.29076452]
[1741523090870,0.30141875,577.83,576.98,0.379]
[1741523091268,0.31831488,577.82,576.98,0.379]
[1741523092471,0.61975713,577.81,576.98,0.379]
[1741523092670,0.30144225,577.81,576.98,0.379]
[1741523092869,0.445,577.8,576.98,0.379]
[1741523095573,0.30144486,577.79,576.98,0.379]
[1741523098175,0.445,577.8,576.98,0.379]
[1741523098673,0.30144616,577.78,576.98,0.379]
[1741523100782,0.31830717,577.77,576.98,0.379]
[1741523101482,0.31830717,577.79,576.98,0.379]
[1741523101681,0.30144877,577.76,576.98,0.379]
[1741523101877,0.31830717,577.75,576.98,0.379]
[1741523103982,0.30144877,577.76,576.98,0.379]
[1741523104183,0.445,577.8,576.98,0.379]
[1741523104384,0.31831375,577.79,576.98,0.379]
[1741523104585,0.30144355,577.75,576.98,0.379]
[1741523107182,0.445,577.8,576.98,0.379]
[1741523107382,0.30142527,577.74,576.98,0.379]
[1741523108687,0.30142527,577.74,576.96,0.34664448]
[1741523110285,0.445,577.8,576.96,0.34664448]
[1741523110485,0.30144877,577.73,576.96,0.34664448]
[1741523110684,0.445,577.8,576.96,0.34664448]
[1741523111591,0.30142527,577.79,576.96,0.34664448]
[1741523111890,0.30142527,577.79,576.97,0.413]
[1741523113289,0.445,577.8,576.97,0.413]
[1741523113590,0.30142527,577.78,576.97,0.413]
[1741523116295,0.445,577.8,576.97,0.413]
[1741523116487,0.30142527,577.77,576.97,0.413]
[1741523119194,0.3460447,577.96,576.97,0.413]
[1741523119595,0.30140439,577.76,576.97,0.413]
[1741523119789,0.3460447,577.96,576.97,0.413]
[1741523120293,0.473,577.95,576.97,0.413]
[1741523120691,0.77436915,577.95,576.97,0.413]
[1741523122192,0.473,577.95,576.97,0.413]
[1741523122689,0.30140569,577.94,576.97,0.413]
[1741523123388,0.31827885,577.93,576.97,0.413]
[1741523124295,0.30140569,577.94,576.97,0.413]
[1741523124496,0.31827721,577.93,576.97,0.413]
[1741523125394,0.30139917,577.92,576.97,0.413]
[1741523126100,0.31827002,577.91,576.98,0.29074817]
[1741523127395,0.31827002,577.91,576.97,0.413]
[1741523128201,0.473,577.95,576.97,0.413]
[1741523128597,0.30139395,577.9,576.97,0.413]
[1741523129204,0.30139395,577.9,576.98,0.29074319]
[1741523129897,0.30139395,577.9,576.99,0.290745]
[1741523130101,0.30139395,577.9,576.98,0.290745]
[1741523131101,0.30139395,577.9,576.97,0.413]
[1741523131302,0.473,577.95,576.97,0.413]
[1741523131510,0.30138873,577.89,576.97,0.413]
[1741523132208,0.30138873,577.89,576.96,0.34664448]
[1741523132606,0.30138873,577.89,576.97,0.29074781]
[1741523132808,0.30138873,577.89,576.96,0.34664448]
[1741523133305,0.3182832,577.88,576.96,0.34664448]
[1741523133702,0.30138873,577.89,576.96,0.34664448]
[1741523134207,0.473,577.95,576.96,0.34664448]
[1741523134408,0.31829601,577.94,576.96,0.34664448]
[1741523134609,0.30141875,577.88,576.96,0.34664448]
[1741523134807,0.31829601,577.87,576.96,0.34664448]
[1741523135002,0.31829601,577.86,576.96,0.34664448]
[1741523135202,0.473,577.95,576.97,0.534]
[1741523135508,0.30145008,577.85,576.97,0.534]
[1741523135708,0.31833282,577.84,576.97,0.534]
[1741523135909,0.31833282,577.94,576.97,0.534]
[1741523136110,0.473,577.95,576.97,0.534]
[1741523136303,0.31833905,577.94,576.97,0.534]
[1741523136908,0.473,577.95,576.97,0.534]
[1741523137105,0.30141614,577.93,576.97,0.534]
[1741523137309,0.31832995,577.92,576.97,0.534]
[1741523138712,0.30141614,577.93,576.97,0.534]
[1741523138914,0.31832761,577.92,576.97,0.534]
[1741523140416,0.31832761,577.94,576.97,0.534]
[1741523140715,0.31832761,577.93,576.97,0.534]
[1741523140916,0.31832761,577.94,576.97,0.534]
[1741523141513,0.30141614,577.93,576.97,0.534]
[1741523141713,0.31832761,577.92,576.97,0.534]
[1741523142310,0.30141614,577.93,576.97,0.534]
[1741523146313,0.473,577.95,576.97,0.534]
[1741523146516,0.30140047,577.92,576.97,0.534]
[1741523147316,0.31830412,577.91,576.97,0.534]
[1741523149121,0.66437876,577.91,576.97,0.534]
[1741523149422,0.61973853,577.9,576.97,0.534]
[1741523149619,0.31830412,577.89,576.97,0.534]
[1741523151321,0.30143441,577.9,576.97,0.534]
[1741523151522,0.31834553,577.88,576.97,0.534]
[1741523151722,0.31834553,577.87,576.97,0.534]
[1741523151922,0.31834553,577.89,576.97,0.534]
[1741523152218,0.31834553,577.88,576.97,0.534]
[1741523152421,0.31834553,577.9,576.97,0.534]
[1741523152622,0.459,577.88,576.97,0.534]
[1741523152823,0.31834553,577.87,576.97,0.534]
[1741523153523,0.61978827,577.86,576.97,0.534]
[1741523153722,0.31834733,577.85,576.97,0.534]
[1741523155325,0.31834733,577.85,576.96,0.34664448]
[1741523155525,0.30144355,577.84,576.96,0.34664448]
[1741523155927,0.31834733,577.83,576.96,0.34664448]
[1741523158432,0.31834733,577.83,576.97,0.351]
[1741523158634,0.31834733,577.87,576.97,0.351]
[1741523158831,0.459,577.88,576.97,0.351]
[1741523158832,0.31834862,577.86,576.97,0.351]
[1741523159030,0.459,577.88,576.97,0.351]
[1741523159031,0.31834862,577.87,576.97,0.351]
[1741523159631,0.30144094,577.86,576.97,0.351]
[1741523159930,0.31834862,577.85,576.97,0.351]
[1741523161628,0.3014775,577.84,576.97,0.351]
[1741523162029,0.31835544,577.83,576.97,0.351]
[1741523163635,0.3014775,577.84,576.97,0.351]
[1741523163834,0.31834813,577.82,576.97,0.351]
[1741523164039,0.31834813,577.81,576.97,0.351]
[1741523164237,0.31834813,577.83,576.97,0.351]
[1741523164436,0.30148403,577.8,576.97,0.351]
[1741523164737,0.31834813,577.79,576.97,0.351]
[1741523167539,0.61983738,577.78,576.97,0.351]
[1741523167735,0.31834813,577.77,576.97,0.351]
[1741523169143,0.31834076,577.76,576.97,0.351]
[1741523169439,0.31834076,577.75,576.97,0.351]
[1741523169641,0.31834076,577.74,576.97,0.351]
[1741523169840,0.31834076,577.77,576.97,0.351]
[1741523170436,0.30146052,577.76,576.98,0.2907893]
[1741523170635,0.31834076,577.75,576.98,0.2907893]
[1741523170835,0.31834076,577.75,576.97,0.351]
[1741523171041,0.30146052,577.76,576.98,0.29078571]
[1741523171239,0.31830814,577.75,576.98,0.29078571]
[1741523171437,0.30146052,577.76,576.98,0.29078571]
[1741523171741,0.486,577.74,576.98,0.29078571]
[1741523175047,0.486,577.74,576.97,0.351]
[1741523177443,0.30145008,577.73,576.97,0.351]
[1741523178548,0.30145008,577.73,576.79,0.30145008]
[1741523178749,0.30145008,577.73,576.8,0.29077822]
[1741523181648,0.30145008,577.73,576.8,0.77677822]
[1741523181849,0.30145008,577.73,576.81,0.2907826]
[1741523182354,0.486,577.74,576.81,0.2907826]
[1741523182549,0.30146183,577.72,576.81,0.2907826]
[1741523185257,0.486,577.74,576.81,0.2907826]
[1741523185658,0.30146183,577.71,576.81,0.2907826]
[1741523188354,0.486,577.74,576.81,0.2907826]
[1741523189554,0.30143963,577.73,576.81,0.2907826]
[1741523190857,0.30143963,577.73,576.8,0.78743963]
[1741523191160,0.34607464,577.91,576.81,0.29078004]
[1741523191558,0.31830238,577.9,576.81,0.29078004]
[1741523192360,0.34607464,577.91,576.81,0.29078004]
[1741523192561,0.30143963,577.89,576.81,0.29078004]
[1741523192758,0.30143963,577.89,576.8,0.78743963]
[1741523192961,0.524,577.88,576.81,0.29078009]
[1741523194657,0.30143702,577.87,576.81,0.29078009]
[1741523195057,0.31830021,577.86,576.81,0.29078009]
[1741523197565,0.61974246,577.85,576.81,0.29078009]
[1741523197862,0.31830021,577.84,576.81,0.29078009]
[1741523198264,0.30144225,577.85,576.82,0.29077973]
[1741523198459,0.31830204,577.84,576.81,0.29077973]
[1741523198656,0.31830204,577.84,576.8,0.78744225]
[1741523198657,0.31830204,577.84,576.82,0.29077973]
[1741523198856,0.30144225,577.85,576.8,0.78744225]
[1741523199060,0.31830512,577.84,576.81,0.29078279]
[1741523200562,0.31830512,577.83,576.81,0.29078279]
[1741523200761,0.31830512,577.87,576.81,0.29078279]
[1741523201066,0.31830512,577.86,576.81,0.29078279]
[1741523201257,0.31830512,577.87,576.81,0.29078279]
[1741523201462,0.30144094,577.85,576.81,0.29078279]
[1741523201658,0.31830512,577.84,576.81,0.29078279]
[1741523201860,0.30144094,577.85,576.8,0.78744094]
[1741523202060,0.31830512,577.84,576.81,0.29078276]
[1741523203166,0.31830512,577.84,576.81,1.57604555]
[1741523203361,0.31830512,577.87,576.82,0.29078276]
[1741523203559,0.30144486,577.83,576.82,0.29078276]
[1741523203760,0.30144486,577.83,576.81,1.28526279]
[1741523203963,0.3182928,577.82,576.82,0.29077062]
[1741523206562,0.61973896,577.81,576.86,1.28526279]
[1741523206767,0.3182928,577.8,576.87,0.29077062]
[1741523207364,0.30144616,577.81,576.86,1.28526279]
[1741523207564,0.31829083,577.8,576.87,0.29076866]
[1741523209573,0.30143963,577.79,576.87,0.29076866]
[1741523209971,0.31829083,577.78,576.87,0.29076866]
[1741523211172,0.31829083,577.78,576.86,1.28526279]
[1741523211173,0.31831576,577.77,576.88,0.29079318]
[1741523211373,0.31831576,577.76,576.89,0.29079318]
[1741523211880,0.31831576,577.75,576.9,0.29079318]
[1741523212180,0.31831576,577.74,576.91,0.29079318]
[1741523212376,0.31831576,577.87,576.85,0.29079318]
[1741523212580,0.31831576,577.86,576.84,1.28526279]
[1741523212780,0.3460986,577.87,576.84,1.28526279]
[1741523213075,0.31832324,577.86,576.85,0.29080058]
[1741523213282,0.34611058,577.85,576.85,0.29080058]
[1741523213478,0.31832324,577.84,576.84,1.28526279]
[1741523213675,0.34612256,577.83,576.84,1.28526279]
[1741523213879,0.31832324,577.82,576.84,1.28526279]
[1741523214277,0.31832324,577.82,576.8,0.486]
[1741523216487,0.30148925,577.81,576.8,0.486]
[1741523217884,0.31837937,577.8,576.8,0.486]
[1741523218280,0.34612256,577.83,576.8,0.486]
[1741523218484,0.3183809,577.82,576.8,0.486]
[1741523219484,0.30153236,577.81,576.8,0.486]
[1741523219788,0.3183809,577.8,576.8,0.486]
[1741523221487,0.34614652,577.79,576.8,0.486]
[1741523221687,0.3183809,577.78,576.8,0.486]
[1741523221885,0.3461585,577.77,576.8,0.486]
[1741523222085,0.3183809,577.76,576.8,0.486]
[1741523222681,0.34617048,577.75,576.8,0.486]
[1741523222882,0.3183809,577.74,576.8,0.486]
[1741523223082,0.66455738,577.74,576.8,0.486]
[1741523223285,0.3183809,577.73,576.8,0.486]
[1741523223987,0.34618846,577.72,576.8,0.486]
[1741523224288,0.3183809,577.71,576.8,0.486]
[1741523224584,0.66457535,577.71,576.8,0.486]
[1741523224788,0.3183809,577.7,576.8,0.486]
[1741523225489,0.30158201,577.69,576.8,0.486]
[1741523225786,0.3183809,577.68,576.8,0.486]
[1741523226788,0.34621842,577.67,576.8,0.486]
[1741523226989,0.3183809,577.66,576.8,0.486]
[1741523227186,0.34623041,577.65,576.8,0.486]
[1741523227383,0.3183809,577.64,576.8,0.486]
[1741523227686,0.3462424,577.63,576.8,0.486]
[1741523227890,0.3183809,577.62,576.8,0.486]
[1741523228091,0.3183809,577.61,576.8,0.486]
[1741523228290,0.3183809,577.6,576.8,0.486]
[1741523228485,0.3183809,577.59,576.8,0.486]
[1741523228887,0.34627237,577.58,576.8,0.486]
[1741523229088,0.3183809,577.57,576.8,0.486]
[1741523230884,0.30170882,577.56,576.8,0.486]
[1741523231088,0.3183809,577.55,576.8,0.486]
[1741523231992,0.34629636,577.54,576.8,0.486]
[1741523232191,0.3183809,577.53,576.8,0.486]
[1741523234494,0.34630835,577.52,576.8,0.486]
[1741523234693,0.3183809,577.51,576.8,0.486]
[1741523234885,0.34632034,577.5,576.8,0.486]
[1741523235090,0.3183809,577.49,576.8,0.486]
[1741523235291,0.34633234,577.48,576.8,0.486]
[1741523235491,0.3183809,577.47,576.8,0.486]
[1741523235691,0.66471923,577.47,576.8,0.486]
[1741523235888,0.3183809,577.46,576.8,0.486]
[1741523236094,0.34633833,577.47,576.8,0.486]
[1741523236394,0.31859851,577.46,576.8,0.486]
[1741523236589,0.34635033,577.45,576.8,0.486]
[1741523236791,0.31859851,577.44,576.8,0.486]
[1741523236996,0.34636232,577.43,576.8,0.486]
[1741523237191,0.31859851,577.42,576.8,0.486]
[1741523237395,0.34637432,577.41,576.8,0.486]
[1741523237597,0.31859851,577.4,576.8,0.486]
[1741523237896,0.34638632,577.39,576.8,0.486]
[1741523238196,0.31859851,577.38,576.8,0.486]
[1741523239490,0.70971536,577.37,576.8,0.486]
[1741523239695,0.31859851,577.36,576.8,0.486]
[1741523239896,0.70971536,577.37,576.8,0.486]
[1741523242302,0.408,577.37,576.8,0.486]
[1741523242501,0.30169312,577.36,576.8,0.486]
[1741523245204,0.408,577.37,576.8,0.486]
[1741523245599,0.30170228,577.35,576.8,0.486]
[1741523248807,0.31858688,577.34,576.8,0.486]
[1741523250810,0.30170228,577.35,576.8,0.486]
[1741523251110,0.31858368,577.34,576.8,0.486]
[1741523251711,0.31858368,577.33,576.8,0.486]
[1741523252009,0.31858368,577.32,576.8,0.486]
[1741523252210,0.408,577.37,576.8,0.486]
[1741523252410,0.31858092,577.36,576.8,0.486]
[1741523252710,0.30179909,577.31,576.8,0.486]
[1741523254310,0.34638632,577.39,576.8,0.486]
[1741523254614,0.31857553,577.38,576.8,0.486]
[1741523255507,0.30175722,577.37,576.8,0.486]
[1741523255908,0.31858607,577.36,576.8,0.486]
[1741523256613,0.452,577.35,576.8,0.486]
[1741523256808,0.31858607,577.34,576.8,0.486]
[1741523258613,0.30173628,577.33,576.8,0.486]
[1741523258913,0.31858607,577.32,576.8,0.486]
[1741523259113,0.31860854,577.31,576.8,0.486]
[1741523259312,0.31860854,577.32,576.8,0.486]
[1741523259513,0.31860854,577.31,576.8,0.486]
[1741523259714,0.31860854,577.32,576.8,0.486]
[1741523259913,0.31860854,577.31,576.8,0.486]
[1741523260114,0.31860854,577.32,576.8,0.486]
[1741523260314,0.31860854,577.31,576.8,0.486]
[1741523260515,0.31860854,577.34,576.8,0.486]
[1741523260715,0.3017389,577.31,576.8,0.486]
[1741523260915,0.31860854,577.3,576.8,0.486]
[1741523261818,0.3017389,577.31,576.8,0.486]
[1741523263325,0.452,577.35,576.8,0.486]
[1741523264625,0.30169574,577.34,576.8,0.486]
[1741523266227,0.452,577.35,576.8,0.486]
[1741523266422,0.30170097,577.33,576.8,0.486]
[1741523269332,0.452,577.35,576.8,0.486]
[1741523269531,0.30169835,577.32,576.8,0.486]
[1741523271935,0.31857388,577.31,576.8,0.486]
[1741523272535,0.34638632,577.39,576.8,0.486]
[1741523272735,0.30170097,577.3,576.8,0.486]
[1741523272934,0.34638632,577.39,576.8,0.486]
[1741523273138,0.31857469,577.38,576.8,0.486]
[1741523273837,0.84273759,577.37,576.8,0.486]
[1741523274137,0.31857469,577.36,576.8,0.486]
[1741523275539,0.30169312,577.35,576.8,0.486]
[1741523275737,0.31857469,577.34,576.8,0.486]
[1741523275935,0.30169312,577.35,576.8,0.486]
[1741523276136,0.31858192,577.34,576.8,0.486]
[1741523276334,0.30169312,577.35,576.8,0.486]
[1741523276533,0.31858477,577.34,576.8,0.486]
[1741523277041,0.30169312,577.35,576.8,0.486]
[1741523278234,0.541,577.37,576.8,0.486]
[1741523279140,0.31858323,577.36,576.8,0.486]
[1741523279540,0.62032082,577.36,576.8,0.486]
[1741523279740,0.30173759,577.36,576.8,0.486]
[1741523281339,0.31858209,577.35,576.8,0.486]
[1741523281538,0.541,577.37,576.8,0.486]
[1741523282536,0.30173759,577.36,576.8,0.486]
[1741523282738,0.62031196,577.36,576.8,0.486]
[1741523282937,0.31857437,577.35,576.8,0.486]
[1741523283545,0.30173759,577.36,576.8,0.486]
[1741523284344,0.541,577.37,576.8,0.486]
[1741523285246,0.30170882,577.36,576.8,0.486]
[1741523287346,0.541,577.37,576.8,0.486]
[1741523287848,0.34638632,577.39,576.8,0.486]
[1741523288347,0.30168005,577.38,576.8,0.486]
[1741523290949,0.419,577.37,576.8,0.486]
[1741523294453,0.30172974,577.36,576.8,0.486]
[1741523299257,0.419,577.37,576.8,0.486]
[1741523300559,0.30171405,577.36,576.8,0.486]
[1741523302262,0.419,577.37,576.8,0.486]
[1741523302661,0.30166043,577.35,576.8,0.486]
[1741523303662,0.31856185,577.34,576.8,0.486]
[1741523303862,0.30166043,577.35,576.8,0.486]
[1741523304062,0.31856193,577.34,576.8,0.486]
[1741523304862,0.30166043,577.35,576.8,0.486]
[1741523305262,0.419,577.37,576.8,0.486]
[1741523305663,0.30168005,577.34,576.8,0.486]
[1741523306961,0.30168005,577.34,576.8,0.47114181]
[1741523307164,0.30168005,577.34,576.37,0.30173498]
[1741523308267,0.34638632,577.39,575.98,1.28526279]
[1741523308566,0.30173498,577.33,576.37,0.30173498]
[1741523308865,0.30173498,577.33,576.0,0.34722222]
[1741523309065,0.30173498,577.33,576.01,0.29174914]
[1741523309264,0.30173498,577.33,576.03,0.34720413]
[1741523309564,0.30173498,577.33,576.04,0.29174914]
[1741523309764,0.30173498,577.33,576.06,0.34718605]
[1741523309960,0.30173498,577.33,576.07,0.29174914]
[1741523310161,0.30173498,577.33,576.09,0.34716797]
[1741523311064,0.66473498,577.33,576.09,0.34716797]
[1741523311264,0.363,577.33,576.09,0.34716797]
[1741523311666,0.30173759,577.32,576.09,0.34716797]
[1741523312766,0.30173759,577.32,576.1,0.508]
[1741523312966,0.30173759,577.32,576.11,0.34715592]
[1741523313769,0.30173759,577.32,576.12,0.29173202]
[1741523313967,0.30173759,577.32,576.13,0.34714387]
[1741523314167,0.30173759,577.32,576.14,0.29173202]
[1741523314362,0.363,577.33,576.16,0.34712579]
[1741523314569,0.30170228,577.31,576.16,0.34712579]
[1741523314772,0.30170228,577.31,576.17,0.29169792]
[1741523314967,0.30170228,577.31,576.19,0.34710772]
[1741523314968,0.28732893,577.31,576.19,0.34710772]
[1741523317270,0.363,577.33,576.19,0.34710772]
[1741523317675,0.3017062,577.3,576.19,0.34710772]
[1741523320175,0.3017062,577.3,576.2,0.29099718]
[1741523320374,0.363,577.33,576.21,0.34709567]
[1741523320575,0.30169051,577.3,576.22,0.29098253]
[1741523320775,0.30169051,577.3,576.24,0.3470776]
[1741523321576,0.30169051,577.3,576.25,0.29097331]
[1741523321876,0.30169051,577.3,576.26,0.34706556]
[1741523322076,0.30169051,577.3,576.27,0.29097209]
[1741523322277,0.30169051,577.3,576.28,0.34705351]
[1741523322477,0.30169051,577.3,576.29,0.29097209]
[1741523322677,0.30169051,577.3,576.3,0.34704147]
[1741523323271,0.363,577.33,576.3,0.34704147]
[1741523323678,0.30168658,577.3,576.31,0.29097532]
[1741523323875,0.30168658,577.3,576.32,0.34702942]
[1741523324076,0.30168658,577.3,576.33,0.29097532]
[1741523324280,0.30168658,577.3,576.34,0.34701738]
[1741523324479,0.30168658,577.3,576.35,0.29097532]
[1741523324681,0.30168658,577.3,576.36,0.34700534]
[1741523324877,0.30168658,577.3,576.37,0.29097532]
[1741523325075,0.30168658,577.3,576.38,0.3469933]
[1741523325375,0.30168658,577.3,576.39,0.29096171]
[1741523325580,0.30168658,577.3,576.4,0.34698126]
[1741523325779,0.30168658,577.3,576.41,0.29096171]
[1741523325980,0.30168658,577.3,576.42,0.34696922]
[1741523326177,0.30168658,577.3,576.43,0.29096171]
[1741523326383,1.27865714,577.55,576.44,0.34695718]
[1741523326577,0.30160945,577.35,576.45,0.29096171]
[1741523326781,0.30160945,577.35,576.46,0.34694514]
[1741523326977,1.27865714,577.55,576.47,0.29096171]
[1741523327177,1.27865714,577.55,576.47,0.63790083]
[1741523327383,1.27865714,577.55,576.48,0.29096171]
[1741523327682,0.30160292,577.54,576.48,0.29096171]
[1741523328379,0.345,577.53,576.48,0.29096171]
[1741523329582,0.30160422,577.52,576.48,0.29096171]
[1741523332292,0.345,577.53,576.48,0.29096171]
[1741523332487,0.345,577.53,576.47,0.34693912]
[1741523332691,0.345,577.53,576.48,0.29095014]
[1741523333593,0.30160292,577.52,576.48,0.29095014]
[1741523335294,0.345,577.53,576.48,0.29095014]
[1741523335794,0.30160553,577.51,576.48,0.29095014]
[1741523336699,0.30160553,577.51,576.49,0.34692709]
[1741523336898,0.30160553,577.51,576.5,0.29095014]
[1741523337895,0.30160553,577.51,576.49,0.34692709]
[1741523338098,0.30160553,577.51,576.51,0.462]
[1741523338298,0.345,577.53,576.52,0.29093932]
[1741523338793,0.30159638,577.5,576.52,0.29093932]
[1741523339601,0.30159638,577.5,576.53,0.29094355]
[1741523339793,0.30159638,577.5,576.51,0.462]
[1741523339794,0.30159638,577.5,576.54,0.29094355]
[1741523339999,0.30159638,577.5,576.55,0.29094355]
[1741523340198,0.30159638,577.5,576.56,0.29094355]
[1741523340398,0.30159638,577.5,576.52,0.29094355]
[1741523340699,0.30159638,577.5,576.53,0.29094355]
[1741523340898,0.30159638,577.5,576.52,0.29094355]
[1741523341099,0.30159638,577.5,576.53,0.29094355]
[1741523341398,0.345,577.53,576.54,0.29094355]
[1741523341600,0.345,577.53,576.55,0.29094355]
[1741523341800,0.345,577.53,576.52,0.29094355]
[1741523342002,0.345,577.53,576.53,0.29094355]
[1741523342195,0.345,577.53,576.52,0.29094355]
[1741523342397,0.345,577.53,576.53,0.63784657]
[1741523342595,0.30157939,577.52,576.54,0.63784055]
[1741523342799,0.30157939,577.52,576.55,0.29094355]
[1741523343603,0.30157939,577.52,576.56,0.34688497]
[1741523343796,0.30157939,577.52,576.57,0.29094355]
[1741523344304,0.345,577.53,576.57,0.29094355]
[1741523344599,0.30157025,577.51,576.57,0.29094355]
[1741523346104,0.30157025,577.51,576.56,0.34688497]
[1741523346403,0.30157025,577.51,576.57,0.29088088]
[1741523346604,0.30157025,577.51,576.58,0.34687294]
[1741523347001,0.30157025,577.51,576.59,0.2908713]
[1741523347200,0.30157025,577.51,576.6,0.3468609]
[1741523347402,0.30157025,577.51,576.61,0.2908713]
[1741523347600,0.30157025,577.51,576.62,0.34684887]
[1741523347803,0.30157025,577.51,576.63,0.2908713]
[1741523348605,0.30157025,577.51,576.64,0.34683684]
[1741523348807,0.30157025,577.51,576.65,0.2908713]
[1741523349799,0.30157025,577.51,576.66,0.29086996]
[1741523350001,0.30157025,577.51,576.67,0.29086996]
[1741523350404,0.345,577.53,576.67,0.29086996]